{"text_format":"1","workbook":"xlsx","n_sheets":1,"sheets":["Sheet1"],"not_rendered":{"charts":0,"images":0,"macros":1,"external_links":0,"defined_names":0,"comments":1,"pivot_tables":0},"unopened":[],"bounds":{"document_bytes":16777216,"sheet_cells":100000,"rows_first":2000,"rows_last":500,"rows_between":2000,"halvings":0,"cell_chars":16384,"cell_head_chars":4096},"cells_cut":0,"cells_raw":0,"read":"whole","date_system":"1900"}

{"sheet":"Sheet1","index":0,"n_rows":35,"n_cols":20,"rows_kept":35,"cut":false,"hidden":false,"merged":[]}
[". AUTHOR",". TITLE",". SERIES",".Read",".Media",".Source",".Dups",null,"Temp","Doug","Jean","Both","eBook","eBook Dup","Audio Book","Audio Dup","Amazon","eBooks 159","Pirate","Dups"]
["Abagnale, Frank W","Catch Me If You Can",null,"Doug","Audio Book","Lib Alaska",null,null,"Artist/Title/Lib",{"$f":"IF($D2=\"Doug\",TRUE)","v":true},{"$f":"IF($D2=\"Jean\",TRUE)","v":false},{"$f":"IF($D2=\"Both\",TRUE)","v":false},{"$f":"IF(AND(E2=\"eBook\",G2=\"\"), TRUE)","v":false},{"$f":"IF(AND(E2=\"eBook\",G2=\"d\"), TRUE)","v":false},{"$f":"IF(AND(E2=\"Audio Book\",G2=\"\"), TRUE)","v":true},{"$f":"IF(AND(E2=\"Audio Book\",G2=\"d\"), TRUE)","v":false},{"$f":"IF(F2=\"Amazon\",TRUE)","v":false},{"$f":"IF(F2=\"Ebooks 159\", TRUE)","v":false},{"$f":"IF(OR(F2=\"Lib Alaska\",F2=\"Lib Calif\",F2=\"Other\",F2=\"Internet\"),TRUE)","v":true},{"$f":"IF(G2=\"d\",TRUE)","v":false}]
["Abbey, Edward","Desert Solitaire",null,"Jean","eBook","Amazon",null,null,"Read by Doug",false,true,false,true,false,false,false,true,false,{"$f":"IF(OR(F3=\"Lib Alaska\",F3=\"Lib Calif\",F3=\"Other\",F3=\"Internet\"),TRUE)","v":false},false]
["Abbott, Edward","Abbott, Edward",null,"","eBook","Internet",null,null,"Read by Jean",false,false,false,true,false,false,false,false,false,true,false]
["Abbott, Jeff","Collision",null,"Doug","Audio Book","Lib Calif",null,null,"Read by Both",true,false,false,false,false,true,false,false,false,true,false]
["Abrahams, Peter","The Tutor",null,"Doug","Audio Book","Lib Calif",null,null,"Unread",true,false,false,false,false,true,false,false,false,true,false]
["Abrahams, Peter","Their Wildest Dreams",null,"Doug","Audio Book","Lib Calif",null,null,"Media Type & Dups",true,false,false,false,false,true,false,false,false,true,false]
["Abramsky, Sasha","American Furies",null,null,"Audio Book","Lib Alaska",null,null,"eBook",false,false,false,false,false,true,false,false,false,true,false]
["Abu-Jaber, Diana","Origin",null,"Doug","Audio Book","Lib Calif",null,null,"eBook w/Audio Dup",true,false,false,false,false,true,false,false,false,true,false]
["Achebe, Chinua","Things Fall Apart",null,"","eBook","Internet",null,null,"Audio Book",false,false,false,true,false,false,false,false,false,true,false]
["Ackroyd, Peter","Hawksmoor",null,null,"Audio Book","Lib Alaska",null,null,"Audio w/eBook Dup",false,false,false,false,false,true,false,false,false,true,false]
["Adams, Douglas","Dirk Gently 1 - Dirk Gently's Holistic Detective Agency","Dirk Gently 1","","eBook","Internet",null,null,"Duplicate  Books",false,false,false,true,false,false,false,false,false,true,false]
["Adams, Douglas","Dirk Gently 2 - The Long Dark Tea-Time of the Soul","Dirk Gently 2","","eBook","Internet",null,null,"Source",false,false,false,true,false,false,false,false,false,true,false]
["Adams, Douglas","HHGTTG BBC Production 03 The Tertiary Phase","HHGTTG BBC 3",null,"Audio Book","Lib Alaska",null,null,"Amazon",false,false,false,false,false,true,false,false,false,true,false]
["Adams, Douglas","HHGTTG BBC Production 04 The Quandary Phase","HHGTTG BBC 4",null,"Audio Book","Lib Alaska",null,null,"eBooks 159",false,false,false,false,false,true,false,false,false,true,false]
["Adams, Douglas","HHGTTG BBC Production 05 The Quintessential Phase","HHGTTG BBC 5",null,"Audio Book","Lib Alaska","d",null,"Internet eBook  &",false,false,false,false,false,false,true,false,false,true,true]
["Adams, Douglas","HHGTTG BBC Production 05 The Quintessential Phase","HHGTTG BBC 5",null,"eBook","Lib Alaska","d",null,"Internet eBook  &",false,false,false,{"$f":"IF(AND(E17=\"eBook\",G17=\"\"), TRUE)","v":false},{"$f":"IF(AND(E17=\"eBook\",G17=\"d\"), TRUE)","v":true},{"$f":"IF(AND(E17=\"Audio Book\",G17=\"\"), TRUE)","v":false},{"$f":"IF(AND(E17=\"Audio Book\",G17=\"d\"), TRUE)","v":false},{"$f":"IF(F17=\"Amazon\",TRUE)","v":false},{"$f":"IF(F17=\"Ebooks 159\", TRUE)","v":false},{"$f":"IF(OR(F17=\"Lib Alaska\",F17=\"Lib Calif\",F17=\"Other\",F17=\"Internet\"),TRUE)","v":true},{"$f":"IF(G17=\"d\",TRUE)","v":true}]
["Adams, Douglas","HHGTTG Book 01 The Hitchhiker's Guide to the Galaxy","HHGTTG 1","Doug","Audio Book","Lib Alaska","d",null,"Public Library MP3's",true,false,false,false,false,false,true,false,false,true,true]
["Adams, Douglas","HHGTTG Book 01 The Hitchhiker's Guide to the Galaxy","HHGTTG 1","Doug","eBook","Internet","d",null,null,true,false,false,false,true,false,false,false,false,true,true]
["Adams, Douglas","HHGTTG Book 02 The Restaurant at the End of the Universe","HHGTTG 2","Doug","Audio Book","Lib Alaska","d",null,null,true,false,false,false,false,false,true,false,false,true,true]
["Adams, Douglas","HHGTTG Book 02 The Restaurant at the End of the Universe","HHGTTG 2","Doug","eBook","Internet","d",null,null,true,false,false,false,true,false,false,false,false,true,true]
["Adams, Douglas","HHGTTG Book 03 Life, the Universe and Everything","HHGTTG 3","Doug","Audio Book","Lib Alaska","d",null,null,true,false,false,false,false,false,true,false,false,true,true]
["Adams, Douglas","HHGTTG Book 03 Life, the Universe and Everything","HHGTTG 3","Doug","eBook","Internet","d",null,null,true,false,false,false,true,false,false,false,false,true,true]
["Adams, Douglas","HHGTTG Book 04 So Long, and Thanks for All the Fish","HHGTTG 4","Doug","Audio Book","Lib Alaska","d",null,null,true,false,false,false,false,false,true,false,false,true,true]
["Adams, Douglas","HHGTTG Book 04 So Long, And Thanks For All the Fish","HHGTTG 4","Doug","eBook","Internet","d",null,null,true,false,false,false,true,false,false,false,false,true,true]
["Adams, Douglas","HHGTTG Book 05 Mostly Harmless","HHGTTG 5","Doug","Audio Book","Lib Alaska","d",null,null,true,false,false,false,false,false,true,false,false,true,true]
["Adams, Douglas","HHGTTG Book 05 Mostly Harmless","HHGTTG 5","Doug","eBook","Internet","d",null,"Artist/Title/Lib",true,false,false,false,true,false,false,false,false,true,true]
["Adams, Douglas","Last Chance to See",null,"","eBook","Internet",null,null,"Read by Doug",false,false,false,true,false,false,false,false,false,true,false]
["Adams, Douglas","Starship Titanic",null,"","eBook","Internet",null,null,"Read by Jean",false,false,false,true,false,false,false,false,false,true,false]
["Adams, Douglas","The Meaning of Liff",null,"","eBook","Internet",null,null,"Read by Both",false,false,false,true,false,false,false,false,false,true,false]
["Adams, Douglas","The Salmon of Doubt",null,"Doug","Audio Book","Other",null,null,"Unread",true,false,false,false,false,true,false,false,false,true,false]
["Adams, Poppy","The Sister",null,null,"Audio Book","Lib Calif",null,null,"Media Type & Dups",false,false,false,false,false,true,false,false,false,true,false]
["Adams, Richard","Watership Down",null,null,"Audio Book","Lib Alaska","d",null,"eBook",false,false,false,false,false,false,true,false,false,true,true]
["Adams, Richard","Watership Down",null,null,"Audio Book","Lib Alaska","d",null,"eBook",false,false,false,{"$f":"IF(AND(E34=\"eBook\",G34=\"\"), TRUE)","v":false},{"$f":"IF(AND(E34=\"eBook\",G34=\"d\"), TRUE)","v":false},{"$f":"IF(AND(E34=\"Audio Book\",G34=\"\"), TRUE)","v":false},{"$f":"IF(AND(E34=\"Audio Book\",G34=\"d\"), TRUE)","v":true},{"$f":"IF(F34=\"Amazon\",TRUE)","v":false},{"$f":"IF(F34=\"Ebooks 159\", TRUE)","v":false},{"$f":"IF(OR(F34=\"Lib Alaska\",F34=\"Lib Calif\",F34=\"Other\",F34=\"Internet\"),TRUE)","v":true},{"$f":"IF(G34=\"d\",TRUE)","v":true}]
["Comment, Test","This is a test comment",null,null,"eBook","Lib Alaska",null,null,"eBook w/Audio Dup",false,false,false,{"$f":"IF(AND(E35=\"eBook\",G35=\"\"), TRUE)","v":true},{"$f":"IF(AND(E35=\"eBook\",G35=\"d\"), TRUE)","v":false},{"$f":"IF(AND(E35=\"Audio Book\",G35=\"\"), TRUE)","v":false},{"$f":"IF(AND(E35=\"Audio Book\",G35=\"d\"), TRUE)","v":false},{"$f":"IF(F35=\"Amazon\",TRUE)","v":false},{"$f":"IF(F35=\"Ebooks 159\", TRUE)","v":false},{"$f":"IF(OR(F35=\"Lib Alaska\",F35=\"Lib Calif\",F35=\"Other\",F35=\"Internet\"),TRUE)","v":true},{"$f":"IF(G35=\"d\",TRUE)","v":false}]